[Event "November 21 Late 2023"]
[Site "https://www.chess.com"]
[Date "2023.11.21"]
[Round "3"]
[White "TheKnightOfBosnia"]
[Black "Kamsky, Gata"]
[Result "0-1"]
[Board "23"]
[TimeControl "180+1"]
[BlackFideId "2000024"]
[WhiteElo "2616"]
[BlackElo "2660"]
[BlackTeam "USA"]
[WhiteClock "0:00:00"]
[BlackClock "0:00:48"]

1. e4 {[%clk 0:03:00]}  c5 {[%clk 0:02:55]} 2. Nf3 {[%clk 0:03:01]}  e6 {[%clk 0:02:55]} 3. d4 {[%clk 0:03:01]}  cxd4 {[%clk 0:02:55]} 4. Nxd4 {[%clk 0:03:02]}  a6 {[%clk 0:02:54]} 5. Nc3 {[%clk 0:03:00]}  b5 {[%clk 0:02:53]} 6. a3 {[%clk 0:02:50]}  Bb7 {[%clk 0:02:52]} 7. Bd3 {[%clk 0:02:46]}  Qb6 {[%clk 0:02:49]} 8. Nf3 {[%clk 0:02:31]}  Nc6 {[%clk 0:02:40]} 9. O-O {[%clk 0:02:30]}  Nge7 {[%clk 0:02:37]} 10. Be3 {[%clk 0:02:28]}  Qd8 {[%clk 0:02:34]} 11. Qe2 {[%clk 0:02:24]}  Ng6 {[%clk 0:02:32]} 12. Rad1 {[%clk 0:02:20]}  Be7 {[%clk 0:02:30]} 13. Bc1 {[%clk 0:02:03]}  d6 {[%clk 0:02:17]} 14. b3 {[%clk 0:01:32]}  O-O {[%clk 0:02:16]} 15. Qe3 {[%clk 0:01:17]}  Rc8 {[%clk 0:02:12]} 16. Bb2 {[%clk 0:01:17]}  Bf6 {[%clk 0:01:58]} 17. Ba1 {[%clk 0:01:09]}  Qa5 {[%clk 0:01:52]} 18. Be2 {[%clk 0:00:27]}  Qxa3 {[%clk 0:01:45]} 19. h4 {[%clk 0:00:23]}  Nb4 {[%clk 0:01:36]} 20. h5 {[%clk 0:00:09]}  Nxc2 {[%clk 0:01:33]} 21. Qd2 {[%clk 0:00:09]}  Nxa1 {[%clk 0:01:32]} 22. Rxa1 {[%clk 0:00:08]}  Qxb3 {[%clk 0:01:24]} 23. hxg6 {[%clk 0:00:05]}  Bxc3 {[%clk 0:01:16]} 24. gxh7+ {[%clk 0:00:05]}  Kh8 {[%clk 0:01:16]} 25. Qd3 {[%clk 0:00:06]}  Qc4 {[%clk 0:01:12]} 26. Qxc4 {[%clk 0:00:06]}  bxc4 {[%clk 0:01:12]} 27. Rac1 {[%clk 0:00:06]}  Bf6 {[%clk 0:01:03]} 28. Bxc4 {[%clk 0:00:06]}  Bxe4 {[%clk 0:01:02]} 29. Bxa6 {[%clk 0:00:06]}  Rxc1 {[%clk 0:01:01]} 30. Rxc1 {[%clk 0:00:07]}  Kxh7 {[%clk 0:00:58]} 31. Be2 {[%clk 0:00:06]}  Rb8 {[%clk 0:00:53]} 32. Rc7 {[%clk 0:00:05]}  Kg8 {[%clk 0:00:51]} 33. Nd2 {[%clk 0:00:00]}  Bg6 {[%clk 0:00:48]} 0-1

[Event "November 21 Late 2023"]
[Site "https://www.chess.com"]
[Date "2023.11.21"]
[Round "3"]
[White "Kovalev, Vladislav"]
[Black "Olsson, Linus"]
[Result "1-0"]
[Board "27"]
[TimeControl "180+1"]
[WhiteFideId "13504398"]
[BlackFideId "1706098"]
[WhiteElo "2539"]
[BlackElo "2222"]
[WhiteTeam "FID"]
[BlackTeam "SWE"]
[WhiteClock "0:00:12"]
[BlackClock "0:00:53"]

1. e4 {[%clk 0:03:00]}  e5 {[%clk 0:02:56]} 2. Nf3 {[%clk 0:02:57]}  Nc6 {[%clk 0:02:57]} 3. Bb5 {[%clk 0:02:58]}  a6 {[%clk 0:02:57]} 4. Ba4 {[%clk 0:02:58]}  Nf6 {[%clk 0:02:57]} 5. O-O {[%clk 0:02:59]}  b5 {[%clk 0:02:58]} 6. Bb3 {[%clk 0:02:59]}  Bc5 {[%clk 0:02:58]} 7. c3 {[%clk 0:03:00]}  d6 {[%clk 0:02:58]} 8. a4 {[%clk 0:03:00]}  Rb8 {[%clk 0:02:58]} 9. d4 {[%clk 0:03:01]}  Bb6 {[%clk 0:02:58]} 10. a5 {[%clk 0:03:01]}  Ba7 {[%clk 0:02:57]} 11. Be3 {[%clk 0:03:01]}  Ra8 {[%clk 0:02:48]} 12. h3 {[%clk 0:03:00]}  O-O {[%clk 0:02:46]} 13. Nbd2 {[%clk 0:02:53]}  Bb7 {[%clk 0:02:45]} 14. Re1 {[%clk 0:02:53]}  h6 {[%clk 0:02:43]} 15. Qc2 {[%clk 0:02:08]}  exd4 {[%clk 0:02:39]} 16. Nxd4 {[%clk 0:02:08]}  Nxd4 {[%clk 0:02:38]} 17. cxd4 {[%clk 0:02:07]}  c5 {[%clk 0:02:37]} 18. dxc5 {[%clk 0:02:01]}  Bxc5 {[%clk 0:02:37]} 19. Bxc5 {[%clk 0:01:53]}  dxc5 {[%clk 0:02:37]} 20. e5 {[%clk 0:01:52]}  Nd5 {[%clk 0:02:31]} 21. Qxc5 {[%clk 0:01:49]}  Nf4 {[%clk 0:02:30]} 22. Ne4 {[%clk 0:01:00]}  Nd3 {[%clk 0:02:21]} 23. Qe3 {[%clk 0:00:59]}  Nxe1 {[%clk 0:02:18]} 24. Rxe1 {[%clk 0:01:00]}  Qxa5 {[%clk 0:02:09]} 25. Nd6 {[%clk 0:00:55]}  Qc7 {[%clk 0:02:01]} 26. Rc1 {[%clk 0:00:44]}  Qe7 {[%clk 0:01:56]} 27. f4 {[%clk 0:00:32]}  Rad8 {[%clk 0:01:50]} 28. Nf5 {[%clk 0:00:25]}  Qb4 {[%clk 0:01:37]} 29. Rc7 {[%clk 0:00:23]}  Bc8 {[%clk 0:01:28]} 30. Nd6 {[%clk 0:00:11]}  Rxd6 {[%clk 0:01:22]} 31. exd6 {[%clk 0:00:12]}  Qxd6 {[%clk 0:01:23]} 32. Rxf7 {[%clk 0:00:12]}  Kh8 {[%clk 0:01:04]} 33. Qe5 {[%clk 0:00:12]}  Qxe5 {[%clk 0:00:55]} 34. Rxf8+ {[%clk 0:00:12]}  Kh7 {[%clk 0:00:56]} 35. fxe5 {[%clk 0:00:12]}  Kg6 {[%clk 0:00:53]} 36. Rxc8 {[%clk 0:00:12]} 1-0

[Event "November 21 Late 2023"]
[Site "https://www.chess.com"]
[Date "2023.11.21"]
[Round "3"]
[White "Richter, Paul"]
[Black "Gokerkan, Cem Kaan"]
[Result "0-1"]
[Board "28"]
[TimeControl "180+1"]
[WhiteFideId "2046350"]
[BlackFideId "6336760"]
[WhiteElo "2533"]
[BlackElo "2365"]
[WhiteTeam "USA"]
[BlackTeam "TUR"]
[WhiteClock "0:00:00"]
[BlackClock "0:00:24"]

1. e4 {[%clk 0:03:00]}  c5 {[%clk 0:03:00]} 2. Nf3 {[%clk 0:03:01]}  d6 {[%clk 0:03:00]} 3. d4 {[%clk 0:03:01]}  cxd4 {[%clk 0:03:01]} 4. Nxd4 {[%clk 0:03:02]}  Nf6 {[%clk 0:03:01]} 5. Nc3 {[%clk 0:03:02]}  e5 {[%clk 0:03:01]} 6. Nb3 {[%clk 0:03:02]}  Be7 {[%clk 0:03:01]} 7. Be2 {[%clk 0:03:01]}  O-O {[%clk 0:03:01]} 8. g4 {[%clk 0:03:01]}  Be6 {[%clk 0:02:54]} 9. g5 {[%clk 0:02:57]}  Nfd7 {[%clk 0:02:54]} 10. h4 {[%clk 0:02:58]}  a5 {[%clk 0:02:54]} 11. Bg4 {[%clk 0:02:32]}  a4 {[%clk 0:02:53]} 12. Nd2 {[%clk 0:02:32]}  a3 {[%clk 0:02:45]} 13. b3 {[%clk 0:02:13]}  Nc6 {[%clk 0:02:41]} 14. Bxe6 {[%clk 0:02:04]}  fxe6 {[%clk 0:02:42]} 15. Nc4 {[%clk 0:02:02]}  Nc5 {[%clk 0:02:38]} 16. Be3 {[%clk 0:01:59]}  b6 {[%clk 0:02:25]} 17. Qg4 {[%clk 0:01:54]}  Nd4 {[%clk 0:02:06]} 18. O-O-O {[%clk 0:01:46]}  b5 {[%clk 0:01:55]} 19. Bxd4 {[%clk 0:01:41]}  exd4 {[%clk 0:01:55]} 20. Nxb5 {[%clk 0:01:41]}  e5 {[%clk 0:01:53]} 21. c3 {[%clk 0:01:14]}  Rxf2 {[%clk 0:01:45]} 22. cxd4 {[%clk 0:00:46]}  Nxb3+ {[%clk 0:01:45]} 23. Kb1 {[%clk 0:00:46]}  Qb8 {[%clk 0:01:41]} 24. Qe6+ {[%clk 0:00:43]}  Kh8 {[%clk 0:01:41]} 25. axb3 {[%clk 0:00:20]}  Qxb5 {[%clk 0:01:35]} 26. Rh3 {[%clk 0:00:18]}  Qb4 {[%clk 0:01:23]} 27. Qxe7 {[%clk 0:00:11]}  Re2 {[%clk 0:01:01]} 28. Rf3 {[%clk 0:00:09]}  Rg8 {[%clk 0:00:45]} 29. Nxd6 {[%clk 0:00:03]}  h5 {[%clk 0:00:34]} 30. g6 {[%clk 0:00:03]}  Rb8 {[%clk 0:00:26]} 31. Nf7+ {[%clk 0:00:02]}  Kg8 {[%clk 0:00:26]} 32. Nh6+ {[%clk 0:00:02]}  gxh6 {[%clk 0:00:26]} 33. Qxb4 {[%clk 0:00:02]}  Rxb4 {[%clk 0:00:26]} 34. Rc1 {[%clk 0:00:00]}  Rxd4 {[%clk 0:00:24]} 0-1

[Event "November 21 Late 2023"]
[Site "https://www.chess.com"]
[Date "2023.11.21"]
[Round "3"]
[White "Baches Garcia, Guillermo"]
[Black "Raja Rithvik R"]
[Result "0-1"]
[Board "29"]
[TimeControl "180+1"]
[WhiteFideId "2209764"]
[BlackFideId "35007394"]
[WhiteElo "2533"]
[BlackElo "2395"]
[WhiteTeam "ESP"]
[BlackTeam "IND"]
[WhiteClock "0:00:00"]
[BlackClock "0:01:57"]

1. d4 {[%clk 0:03:00]}  Nf6 {[%clk 0:02:59]} 2. Nf3 {[%clk 0:03:01]}  d5 {[%clk 0:02:59]} 3. Bg5 {[%clk 0:03:01]}  Ne4 {[%clk 0:02:58]} 4. Bf4 {[%clk 0:03:02]}  c5 {[%clk 0:02:57]} 5. dxc5 {[%clk 0:03:03]}  Nc6 {[%clk 0:02:57]} 6. e3 {[%clk 0:03:02]}  e6 {[%clk 0:02:56]} 7. Nbd2 {[%clk 0:03:01]}  Nxd2 {[%clk 0:02:53]} 8. Qxd2 {[%clk 0:03:00]}  Bxc5 {[%clk 0:02:54]} 9. Be2 {[%clk 0:02:56]}  O-O {[%clk 0:02:53]} 10. O-O {[%clk 0:02:55]}  Qe7 {[%clk 0:02:50]} 11. Rfd1 {[%clk 0:02:49]}  Rd8 {[%clk 0:02:47]} 12. Ne5 {[%clk 0:02:37]}  Bd7 {[%clk 0:02:46]} 13. Nxd7 {[%clk 0:02:26]}  Rxd7 {[%clk 0:02:47]} 14. c3 {[%clk 0:02:21]}  Rad8 {[%clk 0:02:46]} 15. h3 {[%clk 0:02:19]}  Bd6 {[%clk 0:02:47]} 16. Bxd6 {[%clk 0:02:16]}  Rxd6 {[%clk 0:02:48]} 17. Rac1 {[%clk 0:02:09]}  a6 {[%clk 0:02:47]} 18. b3 {[%clk 0:02:05]}  g6 {[%clk 0:02:42]} 19. Qb2 {[%clk 0:01:58]}  h5 {[%clk 0:02:37]} 20. Rd2 {[%clk 0:01:56]}  Qf6 {[%clk 0:02:32]} 21. Rcd1 {[%clk 0:01:55]}  b5 {[%clk 0:02:28]} 22. a4 {[%clk 0:01:46]}  bxa4 {[%clk 0:02:20]} 23. bxa4 {[%clk 0:01:45]}  Rb8 {[%clk 0:02:14]} 24. Qa3 {[%clk 0:01:40]}  Qd8 {[%clk 0:02:02]} 25. Bxa6 {[%clk 0:01:35]}  Ne5 {[%clk 0:02:02]} 26. c4 {[%clk 0:01:24]}  Rxa6 {[%clk 0:02:00]} 27. cxd5 {[%clk 0:01:22]}  Nc4 {[%clk 0:01:57]} 28. Qd3 {[%clk 0:01:17]}  Qxd5 {[%clk 0:01:56]} 29. Qxd5 {[%clk 0:01:17]}  exd5 {[%clk 0:01:57]} 30. Rxd5 {[%clk 0:01:17]}  Rxa4 {[%clk 0:01:58]} 31. Rc5 {[%clk 0:01:15]}  Nb6 {[%clk 0:01:52]} 32. Rb1 {[%clk 0:01:12]}  Raa8 {[%clk 0:01:53]} 33. Rc7 {[%clk 0:01:11]}  Nd5 {[%clk 0:01:52]} 34. Rxb8+ {[%clk 0:01:11]}  Rxb8 {[%clk 0:01:52]} 35. Rd7 {[%clk 0:01:12]}  Nf6 {[%clk 0:01:53]} 36. Rd4 {[%clk 0:01:10]}  Re8 {[%clk 0:01:53]} 37. g4 {[%clk 0:01:10]}  hxg4 {[%clk 0:01:53]} 38. hxg4 {[%clk 0:01:11]}  Re4 {[%clk 0:01:54]} 39. Rd8+ {[%clk 0:01:11]}  Kg7 {[%clk 0:01:55]} 40. g5 {[%clk 0:01:11]}  Rg4+ {[%clk 0:01:55]} 41. Kf1 {[%clk 0:00:14]}  Rxg5 {[%clk 0:01:56]} 42. Ke2 {[%clk 0:00:00]}  Rd5 {[%clk 0:01:57]} 0-1

[Event "November 21 Late 2023"]
[Site "https://www.chess.com"]
[Date "2023.11.21"]
[Round "3"]
[White "Pakleza, Zbigniew"]
[Black "Willy, Stephen"]
[Result "1-0"]
[Board "34"]
[TimeControl "180+1"]
[WhiteFideId "1119290"]
[BlackFideId "30981468"]
[WhiteElo "2410"]
[BlackElo "2139"]
[WhiteTeam "POL"]
[BlackTeam "USA"]
[WhiteClock "0:00:07"]
[BlackClock "0:00:07"]

1. d4 {[%clk 0:03:00]}  d5 {[%clk 0:02:54]} 2. Bf4 {[%clk 0:03:00]}  Nf6 {[%clk 0:02:49]} 3. e3 {[%clk 0:03:00]}  Bf5 {[%clk 0:02:47]} 4. c4 {[%clk 0:03:00]}  e6 {[%clk 0:02:47]} 5. Nc3 {[%clk 0:03:01]}  Bb4 {[%clk 0:02:44]} 6. Bd3 {[%clk 0:03:01]}  Ne4 {[%clk 0:02:40]} 7. Ne2 {[%clk 0:02:59]}  g5 {[%clk 0:02:16]} 8. Be5 {[%clk 0:02:56]}  f6 {[%clk 0:02:15]} 9. Bg3 {[%clk 0:02:51]}  h5 {[%clk 0:02:14]} 10. h4 {[%clk 0:02:45]}  Nc6 {[%clk 0:02:06]} 11. cxd5 {[%clk 0:02:15]}  Qxd5 {[%clk 0:02:04]} 12. f3 {[%clk 0:01:58]}  Bxc3+ {[%clk 0:01:36]} 13. Nxc3 {[%clk 0:01:40]}  Nxc3 {[%clk 0:01:36]} 14. bxc3 {[%clk 0:01:41]}  Qa5 {[%clk 0:01:31]} 15. O-O {[%clk 0:01:30]}  O-O-O {[%clk 0:01:25]} 16. Bxf5 {[%clk 0:01:15]}  exf5 {[%clk 0:01:17]} 17. Qb3 {[%clk 0:01:09]}  Rhe8 {[%clk 0:00:53]} 18. Rab1 {[%clk 0:01:06]}  Qa6 {[%clk 0:00:54]} 19. Rfe1 {[%clk 0:00:57]}  Na5 {[%clk 0:00:46]} 20. Qf7 {[%clk 0:00:45]}  Qc6 {[%clk 0:00:32]} 21. Qxh5 {[%clk 0:00:38]}  f4 {[%clk 0:00:25]} 22. exf4 {[%clk 0:00:33]}  Rxe1+ {[%clk 0:00:21]} 23. Bxe1 {[%clk 0:00:25]}  Qe6 {[%clk 0:00:20]} 24. fxg5 {[%clk 0:00:18]}  Qxa2 {[%clk 0:00:18]} 25. Qg6 {[%clk 0:00:06]}  fxg5 {[%clk 0:00:11]} 26. hxg5 {[%clk 0:00:07]}  a6 {[%clk 0:00:11]} 27. Bg3 {[%clk 0:00:07]}  Qc4 {[%clk 0:00:09]} 28. Qf5+ {[%clk 0:00:06]}  Kb8 {[%clk 0:00:08]} 29. Qxa5 {[%clk 0:00:06]}  Rd5 {[%clk 0:00:08]} 30. Qxc7+ {[%clk 0:00:05]}  Qxc7 {[%clk 0:00:08]} 31. Bxc7+ {[%clk 0:00:06]}  Kxc7 {[%clk 0:00:07]} 32. f4 {[%clk 0:00:07]} 1-0

[Event "November 21 Late 2023"]
[Site "https://www.chess.com"]
[Date "2023.11.21"]
[Round "3"]
[White "Vasquez Schroeder, Rodrigo"]
[Black "Eggleston, Thomas A"]
[Result "1-0"]
[Board "35"]
[TimeControl "180+1"]
[WhiteFideId "3400042"]
[BlackFideId "412139"]
[WhiteElo "2582"]
[BlackElo "2169"]
[WhiteTeam "CHI"]
[BlackTeam "ENG"]
[WhiteClock "0:00:18"]
[BlackClock "0:00:00"]

1. e4 {[%clk 0:02:51]}  e6 {[%clk 0:03:00]} 2. d4 {[%clk 0:02:47]}  d5 {[%clk 0:03:00]} 3. Nc3 {[%clk 0:02:48]}  Nf6 {[%clk 0:03:00]} 4. e5 {[%clk 0:02:48]}  Nfd7 {[%clk 0:03:00]} 5. Nce2 {[%clk 0:02:49]}  c5 {[%clk 0:03:00]} 6. c3 {[%clk 0:02:49]}  Nc6 {[%clk 0:03:00]} 7. f4 {[%clk 0:02:49]}  Be7 {[%clk 0:02:58]} 8. a3 {[%clk 0:02:48]}  O-O {[%clk 0:02:50]} 9. Nf3 {[%clk 0:02:48]}  f6 {[%clk 0:02:44]} 10. h4 {[%clk 0:02:47]}  Qb6 {[%clk 0:02:41]} 11. b4 {[%clk 0:02:44]}  cxd4 {[%clk 0:02:37]} 12. cxd4 {[%clk 0:02:44]}  a5 {[%clk 0:02:35]} 13. b5 {[%clk 0:02:44]}  Qxb5 {[%clk 0:02:32]} 14. Nc3 {[%clk 0:02:43]}  Qb6 {[%clk 0:02:32]} 15. Rb1 {[%clk 0:02:44]}  Qd8 {[%clk 0:02:29]} 16. Nb5 {[%clk 0:02:44]}  b6 {[%clk 0:02:24]} 17. Bd3 {[%clk 0:02:38]}  Na7 {[%clk 0:02:12]} 18. Bxh7+ {[%clk 0:02:28]}  Kxh7 {[%clk 0:02:12]} 19. Ng5+ {[%clk 0:02:28]}  Kg6 {[%clk 0:02:04]} 20. f5+ {[%clk 0:02:19]}  exf5 {[%clk 0:02:02]} 21. h5+ {[%clk 0:02:14]}  Kh6 {[%clk 0:02:00]} 22. Ne6+ {[%clk 0:02:08]}  Kh7 {[%clk 0:02:00]} 23. Nxd8 {[%clk 0:02:07]}  Bxd8 {[%clk 0:01:51]} 24. Nxa7 {[%clk 0:01:42]}  Rxa7 {[%clk 0:01:51]} 25. Bf4 {[%clk 0:01:41]}  fxe5 {[%clk 0:01:40]} 26. dxe5 {[%clk 0:01:37]}  Nc5 {[%clk 0:01:29]} 27. Be3 {[%clk 0:01:26]}  d4 {[%clk 0:01:11]} 28. Bf4 {[%clk 0:01:12]}  Ba6 {[%clk 0:01:09]} 29. Rh3 {[%clk 0:01:11]}  d3 {[%clk 0:00:59]} 30. Qf3 {[%clk 0:01:05]}  d2+ {[%clk 0:00:46]} 31. Bxd2 {[%clk 0:01:00]}  Nd3+ {[%clk 0:00:46]} 32. Kd1 {[%clk 0:01:00]}  Nxe5 {[%clk 0:00:38]} 33. Qg3 {[%clk 0:00:53]}  f4 {[%clk 0:00:25]} 34. Qc3 {[%clk 0:00:42]}  Bf6 {[%clk 0:00:20]} 35. h6 {[%clk 0:00:39]}  g5 {[%clk 0:00:17]} 36. Rxb6 {[%clk 0:00:37]}  Ng4 {[%clk 0:00:08]} 37. Qc2+ {[%clk 0:00:30]}  Kh8 {[%clk 0:00:08]} 38. Bc3 {[%clk 0:00:24]}  Nf2+ {[%clk 0:00:06]} 39. Qxf2 {[%clk 0:00:23]}  Rd8+ {[%clk 0:00:03]} 40. Bd2 {[%clk 0:00:19]}  Bc3 {[%clk 0:00:00]} 41. Rxc3 {[%clk 0:00:18]} 1-0

[Event "November 21 Late 2023"]
[Site "https://www.chess.com"]
[Date "2023.11.21"]
[Round "3"]
[White "Saim, Mohamed Ilias"]
[Black "Xu, Yi"]
[Result "0-1"]
[Board "36"]
[TimeControl "180+1"]
[WhiteFideId "7900465"]
[BlackFideId "8605564"]
[WhiteElo "2063"]
[BlackElo "2460"]
[WhiteTeam "ALG"]
[BlackTeam "CHN"]
[WhiteClock "0:00:00"]
[BlackClock "0:00:27"]

1. d4 {[%clk 0:03:00]}  Nf6 {[%clk 0:02:58]} 2. Bg5 {[%clk 0:03:01]}  d5 {[%clk 0:02:55]} 3. Bxf6 {[%clk 0:02:59]}  gxf6 {[%clk 0:02:54]} 4. e3 {[%clk 0:02:59]}  c5 {[%clk 0:02:53]} 5. dxc5 {[%clk 0:02:54]}  Nc6 {[%clk 0:02:52]} 6. Nf3 {[%clk 0:02:41]}  e5 {[%clk 0:02:49]} 7. Nc3 {[%clk 0:02:34]}  Be6 {[%clk 0:02:47]} 8. Qd2 {[%clk 0:02:20]}  Bxc5 {[%clk 0:02:46]} 9. O-O-O {[%clk 0:02:20]}  Bb4 {[%clk 0:02:31]} 10. a3 {[%clk 0:02:13]}  Bxc3 {[%clk 0:02:31]} 11. Qxc3 {[%clk 0:02:12]}  Rc8 {[%clk 0:02:29]} 12. Bb5 {[%clk 0:02:10]}  Qb6 {[%clk 0:02:26]} 13. Ba4 {[%clk 0:01:54]}  O-O {[%clk 0:02:25]} 14. Qd2 {[%clk 0:01:48]}  Rfd8 {[%clk 0:02:22]} 15. Nh4 {[%clk 0:01:36]}  Na5 {[%clk 0:02:19]} 16. Qb4 {[%clk 0:01:18]}  Rc4 {[%clk 0:01:59]} 17. Qe7 {[%clk 0:00:44]}  Rxh4 {[%clk 0:01:41]} 18. Be8 {[%clk 0:00:23]}  Kg7 {[%clk 0:01:28]} 19. e4 {[%clk 0:00:20]}  Rxe4 {[%clk 0:01:20]} 20. Rd3 {[%clk 0:00:19]}  Rg4 {[%clk 0:00:59]} 21. Rg3 {[%clk 0:00:17]}  Rxg3 {[%clk 0:00:46]} 22. hxg3 {[%clk 0:00:18]}  Qd6 {[%clk 0:00:45]} 23. Rxh7+ {[%clk 0:00:05]}  Kxh7 {[%clk 0:00:45]} 24. Qxf6 {[%clk 0:00:06]}  Rxe8 {[%clk 0:00:40]} 25. g4 {[%clk 0:00:02]}  Rc8 {[%clk 0:00:34]} 26. g5 {[%clk 0:00:02]}  Qf8 {[%clk 0:00:27]} 27. g6+ {[%clk 0:00:01]}  fxg6 {[%clk 0:00:27]} 28. Qxe6 {[%clk 0:00:01]}  Rxc2+ {[%clk 0:00:27]} 29. Kxc2 {[%clk 0:00:00]}  Qf5+ {[%clk 0:00:27]} 0-1

[Event "November 21 Late 2023"]
[Site "https://www.chess.com"]
[Date "2023.11.21"]
[Round "3"]
[White "Lamard, Guillaume"]
[Black "Terry, Renato"]
[Result "1-0"]
[Board "38"]
[TimeControl "180+1"]
[WhiteFideId "600261"]
[BlackFideId "3803457"]
[WhiteElo "2409"]
[BlackElo "2572"]
[WhiteTeam "FRA"]
[BlackTeam "PER"]
[WhiteClock "0:00:22"]
[BlackClock "0:00:00"]

1. Nf3 {[%clk 0:02:58]}  Nf6 {[%clk 0:02:59]} 2. b3 {[%clk 0:02:57]}  d5 {[%clk 0:02:59]} 3. Bb2 {[%clk 0:02:57]}  Bg4 {[%clk 0:03:00]} 4. e3 {[%clk 0:02:56]}  c6 {[%clk 0:03:00]} 5. Be2 {[%clk 0:02:56]}  Nbd7 {[%clk 0:03:01]} 6. h3 {[%clk 0:02:54]}  Bxf3 {[%clk 0:03:00]} 7. Bxf3 {[%clk 0:02:54]}  e5 {[%clk 0:03:01]} 8. d3 {[%clk 0:02:54]}  Bd6 {[%clk 0:03:01]} 9. Nd2 {[%clk 0:02:55]}  Qe7 {[%clk 0:03:01]} 10. e4 {[%clk 0:02:47]}  Ba3 {[%clk 0:02:59]} 11. Bxa3 {[%clk 0:02:39]}  Qxa3 {[%clk 0:03:00]} 12. O-O {[%clk 0:02:39]}  d4 {[%clk 0:02:59]} 13. Bg4 {[%clk 0:02:30]}  O-O {[%clk 0:02:45]} 14. Nc4 {[%clk 0:02:17]}  Qc5 {[%clk 0:02:43]} 15. Bxd7 {[%clk 0:02:10]}  Nxd7 {[%clk 0:02:43]} 16. a4 {[%clk 0:02:11]}  b5 {[%clk 0:02:32]} 17. Nd2 {[%clk 0:01:58]}  Rfe8 {[%clk 0:02:18]} 18. g3 {[%clk 0:01:53]}  Nf6 {[%clk 0:02:04]} 19. Kg2 {[%clk 0:01:51]}  h5 {[%clk 0:02:03]} 20. Nf3 {[%clk 0:01:44]}  g6 {[%clk 0:01:59]} 21. Qd2 {[%clk 0:01:43]}  Nh7 {[%clk 0:01:49]} 22. Ra2 {[%clk 0:01:27]}  Re6 {[%clk 0:01:46]} 23. Rfa1 {[%clk 0:01:23]}  Kg7 {[%clk 0:01:41]} 24. axb5 {[%clk 0:01:21]}  cxb5 {[%clk 0:01:42]} 25. Ra6 {[%clk 0:01:10]}  Rxa6 {[%clk 0:01:38]} 26. Rxa6 {[%clk 0:01:11]}  Rc8 {[%clk 0:01:39]} 27. Qa5 {[%clk 0:01:04]}  Qxc2 {[%clk 0:00:55]} 28. Rxa7 {[%clk 0:00:54]}  Qc5 {[%clk 0:00:12]} 29. b4 {[%clk 0:00:54]}  Qc6 {[%clk 0:00:07]} 30. Rxf7+ {[%clk 0:00:51]}  Kg8 {[%clk 0:00:07]} 31. Qa7 {[%clk 0:00:48]}  Nf8 {[%clk 0:00:02]} 32. Nxe5 {[%clk 0:00:45]}  Qe6 {[%clk 0:00:02]} 33. Rg7+ {[%clk 0:00:30]}  Kh8 {[%clk 0:00:03]} 34. Re7 {[%clk 0:00:26]}  Qf6 {[%clk 0:00:02]} 35. Nf7+ {[%clk 0:00:26]}  Kg8 {[%clk 0:00:02]} 36. Nh6+ {[%clk 0:00:24]}  Kh8 {[%clk 0:00:03]} 37. Rf7 {[%clk 0:00:23]}  Qg5 {[%clk 0:00:00]} 38. Qxd4+ {[%clk 0:00:22]} 1-0